fUST/lending_fUST_20250117
["ID","MTS","AMOUNT","RATE_DAILY","PERIOD"]
[349306647,1737113659991,546.96913506,0.00025,120]
[349306659,1737113879965,160.258029,0.00013973,2]
[349306770,1737114643713,-490.85,0.000206,2]
[349306771,1737114643723,-355.10212109,0.000215,2]
[349306772,1737114643733,-369.98894014,0.000215,2]
[349306773,1737114643742,-344.2408318,0.000215,2]
[349306774,1737114643752,-506.13151607,0.00021573,2]
[349306775,1737114643762,-508.28300844,0.00021573,2]
[349306776,1737114643771,-566.03825667,0.00021573,2]
[349306777,1737114643782,-500.0,0.00021573,2]
[349306778,1737114643792,-500.0,0.00021573,2]
[349306779,1737114643801,-300.0,0.00021599,2]
[349306780,1737114643813,-4669.88391977,0.000216,5]
[349306782,1737114643824,-2357.94867717,0.000216,5]
[349306784,1737114643833,-30310.13998622,0.000216,10]
[349306786,1737114643846,-16540.9231,0.000216,10]
[349306787,1737114643858,-339.95139962,0.000216,10]
[349306789,1737114643870,-340.0457358,0.000216,10]
[349306798,1737114770634,161.143591,0.00013973,2]
[349306805,1737115649079,161.977061,0.00013973,2]
[349306922,1737115842833,-186.84083201,0.000189,2]
[349306924,1737115842842,-216.08099358,0.00019,2]
[349306930,1737115842890,-87.06450474,0.00019,2]
[349306932,1737115842900,-303.14549832,0.0001919,2]
[349306934,1737115842909,-303.14549832,0.0001938,2]
[349306936,1737115842919,-170.05380414,0.000194,2]
[349306938,1737115842928,-245.23215177,0.000195,2]
[349306940,1737115842937,-102.56354271,0.0001957,2]
[349308044,1737115968110,473.77,0.00016,2]
[349308047,1737116411696,818.0263254,0.00025,120]
[349308049,1737116479786,162.761504,0.00013973,2]
[349308105,1737117032088,-169.410744,0.00017892,2]
[349308107,1737117032098,-2147.5795739,0.00018745,2]
[349308109,1737117032108,-421.66240662,0.00018745,2]
[349308111,1737117032117,-300.0,0.00018838,2]
[349308113,1737117032127,-18622.93028454,0.00018839,5]
[349308115,1737117032138,-2694.68015921,0.00018839,5]
[349308123,1737117032200,-5822.98675367,0.00018839,5]
[349308125,1737117032209,-14760.51138232,0.00018839,5]
[349308127,1737117032220,-322.2590687,0.0001889,2]
[349308129,1737117032230,-28668.77285823,0.00019,2]
[349308131,1737117032239,-169.764469,0.00019178,2]
[349308133,1737117032249,-11943.66757498,0.0001937,2]
[349308135,1737117032259,-175.477,0.00019431,2]
[349308137,1737117032269,-421.66240655,0.00019439,2]
[349308140,1737117032281,-3428.0,0.000199,2]
[349308142,1737117032293,-390.60795244,0.000199,2]
[349308144,1737117032303,-5000.0,0.0002,4]
[349308146,1737117032312,-390.60795228,0.00020038,2]
[349308148,1737117032322,-421.66240655,0.00020132,2]
[349308150,1737117032332,-390.60795228,0.00020176,2]
[349308151,1737117032342,-3506.0,0.0002028,2]
[349308154,1737117032352,-390.60795228,0.00020314,2]
[349308155,1737117032362,-390.60795228,0.00020452,2]
[349308158,1737117032373,-417.042,0.0002052,2]
[349308160,1737117032384,-212.7616689,0.00020521,2]
[349308161,1737117032393,-420.0,0.00020537,2]
[349308162,1737117032403,-390.60795228,0.0002059,2]
[349308163,1737117032413,-153.0,0.00020604,2]
[349308164,1737117032423,-153.0,0.00020604,2]
[349308165,1737117032433,-153.0,0.00020604,2]
[349308166,1737117032442,-153.0,0.00020604,2]
[349308167,1737117032452,-151.0,0.00020652,2]
[349308168,1737117032462,-153.0,0.00020652,2]
[349308169,1737117032471,-153.0,0.00020704,2]
[349308170,1737117032482,-390.60795228,0.00020728,2]
[349308171,1737117032491,-172.9554584,0.00020752,2]
[349308172,1737117032501,-421.66240655,0.00020826,2]
[349308173,1737117032511,-80000.0,0.00020853,2]
[349308175,1737117032521,-151.0,0.00020853,2]
[349308177,1737117032531,-151.0,0.00020853,2]
[349308179,1737117032540,-151.0,0.00020853,2]
[349308181,1737117032550,-151.0,0.00020853,2]
[349308183,1737117032559,-151.0,0.00020853,2]
[349308184,1737117032568,-212.705129,0.00020853,2]
[349308186,1737117032578,-151.0,0.00020853,2]
[349308188,1737117032588,-151.0,0.00020853,2]
[349308190,1737117032597,-151.0,0.00020853,2]
[349308193,1737117032607,-151.0,0.00020853,2]
[349308194,1737117032616,-151.0,0.00020853,2]
[349308196,1737117032626,-151.0,0.00020853,2]
[349308198,1737117032635,-151.0,0.00020853,2]
[349308201,1737117032645,-151.0,0.00020853,2]
[349308202,1737117032654,-151.0,0.00020853,2]
[349308204,1737117032663,-151.731235,0.00020853,2]
[349308206,1737117032672,-151.0,0.00020853,2]
[349308208,1737117032681,-223.047894,0.00020853,2]
[349308210,1737117032690,-223.047894,0.00020853,2]
[349308212,1737117032700,-151.0,0.00020853,2]
[349308214,1737117032710,-151.0,0.00020853,2]
[349308216,1737117032719,-151.0,0.00020853,2]
[349308218,1737117032729,-151.0,0.00020853,2]
[349308220,1737117032738,-151.0,0.00020853,2]
[349308222,1737117032748,-151.0,0.00020853,2]
[349308224,1737117032756,-151.0,0.00020853,2]
[349308226,1737117032766,-151.0,0.00020853,2]
[349308228,1737117032776,-151.0,0.00020853,2]
[349308230,1737117032786,-151.0,0.00020853,2]
[349308232,1737117032795,-151.0,0.00020853,2]
[349308234,1737117032805,-151.0,0.00020853,2]
[349308236,1737117032815,-151.0,0.00020853,2]
[349308238,1737117032824,-151.0,0.00020853,2]
[349308240,1737117032833,-151.0,0.00020853,2]
[349308242,1737117032844,-151.0,0.00020853,2]
[349308245,1737117032855,-390.60795228,0.00020866,2]
[349308247,1737117032864,-153.0,0.00020904,2]
[349308249,1737117032873,-1000.0,0.00021,21]
[349308250,1737117032882,-390.60795228,0.00021003,2]
[349308253,1737117032892,-390.60795228,0.00021141,2]
[349308255,1737117032902,-390.60795228,0.00021279,2]
[349308257,1737117032912,-390.60795228,0.00021417,2]
[349308258,1737117032922,-2254.02,0.000215,4]
[349308260,1737117032931,-332.99004609,0.000215,2]
[349308262,1737117032941,-421.66240655,0.0002152,2]
[349308265,1737117032950,-390.60795228,0.00021555,2]
[349308266,1737117032960,-500.0,0.00021599,2]
[349308269,1737117032969,-165.44149425,0.00021599,2]
[349308271,1737117032978,-317.99639497,0.00021599,2]
[349308273,1737117032988,-500.0,0.00021599,2]
[349308275,1737117032998,-500.0,0.00021599,2]
[349308277,1737117033007,-500.0,0.00021599,2]
[349308279,1737117033016,-500.0,0.00021599,2]
[349308280,1737117033027,-500.0,0.00021599,2]
[349308283,1737117033037,-208.99697271,0.00021599,2]
[349308285,1737117033050,-291.00302729,0.00021599,2]
[349308287,1737117033060,-619.50836636,0.00021599,2]
[349308289,1737117033069,-500.0,0.00021599,2]
[349308291,1737117033079,-500.0,0.00021599,2]
[349308293,1737117033089,-500.0,0.00021599,2]
[349308295,1737117033099,-559.28060291,0.00021599,2]
[349308297,1737117033109,-500.0,0.00021599,2]
[349308298,1737117033120,-500.0,0.00021599,2]
[349308299,1737117033130,-500.0,0.00021599,2]
[349308301,1737117033140,-500.0,0.00021599,2]
[349308303,1737117033151,-550.0,0.00021599,2]
[349308304,1737117033160,-500.0,0.00021599,2]
[349308305,1737117033170,-388.42550401,0.00021599,2]
[349308306,1737117033211,-111.57449599,0.00021599,2]
[349308307,1737117033220,-242.55875424,0.00021599,2]
[349308308,1737117033230,-500.0,0.00021599,2]
[349308309,1737117033239,-500.0,0.00021599,2]
[349308310,1737117033249,-500.0,0.00021599,2]
[349308311,1737117033259,-479.1,0.00021599,2]
[349308312,1737117033269,-235.5009296,0.00021599,2]
[349308313,1737117033280,-248.05933369,0.00021599,2]
[349308314,1737117033292,-500.0,0.00021599,2]
[349308315,1737117033301,-193.61763936,0.00021599,2]
[349308316,1737117033311,-151.0,0.00021599,2]
[349308317,1737117033320,-152.707099,0.00021599,2]
[349308318,1737117033331,-300.039054,0.00021599,2]
[349308319,1737117033340,-151.0,0.00021599,2]
[349308320,1737117033349,-151.0,0.00021599,2]
[349308321,1737117033359,-151.0,0.00021599,2]
[349308322,1737117033370,-151.0,0.00021599,2]
[349308323,1737117033380,-151.0,0.00021599,2]
[349308324,1737117033390,-151.0,0.00021599,2]
[349308325,1737117033400,-151.0,0.00021599,2]
[349308326,1737117033409,-151.0,0.00021599,2]
[349308327,1737117033419,-204.812677,0.00021599,2]
[349308328,1737117033428,-223.047894,0.00021599,2]
[349308329,1737117033438,-223.047894,0.00021599,2]
[349308330,1737117033447,-236.877402,0.00021599,2]
[349308331,1737117033457,-151.0,0.00021599,2]
[349308332,1737117033466,-151.0,0.00021599,2]
[349308333,1737117033475,-151.0,0.00021599,2]
[349308334,1737117033485,-151.0,0.00021599,2]
[349308335,1737117033495,-187.058188,0.00021599,2]
[349308336,1737117033505,-151.0,0.00021599,2]
[349308337,1737117033514,-151.0,0.00021599,2]
[349308338,1737117033524,-151.0,0.00021599,2]
[349308339,1737117033534,-151.0,0.00021599,2]
[349308340,1737117033543,-151.0,0.00021599,2]
[349308341,1737117033553,-151.0,0.00021599,2]
[349308342,1737117033563,-285.936669,0.00021599,2]
[349308343,1737117033572,-207.152358,0.00021599,2]
[349308344,1737117033582,-151.0,0.00021599,2]
[349308345,1737117033591,-151.0,0.00021599,2]
[349308346,1737117033601,-151.0,0.00021599,2]
[349308347,1737117033611,-180.836316,0.00021599,2]
[349308348,1737117033620,-151.0,0.00021599,2]
[349308349,1737117033629,-151.0,0.00021599,2]
[349308350,1737117033638,-151.0,0.00021599,2]
[349308351,1737117033648,-151.0,0.00021599,2]
[349308352,1737117033658,-92874.21038836,0.000216,10]
[349308370,1737117037927,-161.96782196,0.00020753,2]
[349308371,1737117037937,-151.0,0.00020853,2]
[349308372,1737117037947,-2983.88484716,0.000216,10]
[349308402,1737117040189,-151.0,0.00021599,2]
[349308404,1737117040198,-151.0,0.00021599,2]
[349308406,1737117040207,-3584.58623137,0.000216,10]
[349308409,1737117040218,-797.43683832,0.000216,10]
[349308697,1737117042978,-61511.86999397,0.000216,10]
[349308704,1737117043043,-3731.14784074,0.000216,10]
[349308706,1737117043056,-523.83586226,0.000216,10]
[349308709,1737117043068,-433.29,0.000216,10]
[349308711,1737117043079,-970.76,0.000216,10]
[349308713,1737117043090,-1780.35039008,0.000216,10]
[349308715,1737117043102,-3502.2408558,0.000216,10]
[349308717,1737117043113,-37617.78720613,0.000216,10]
[349308975,1737117045971,-492325.24431122,0.000216,10]
[349314113,1737117348500,163.499803,0.00013973,2]
[349314256,1737118236037,-437.03779696,0.00018645,2]
[349314258,1737118236047,-274.16519255,0.000189,2]
[349314260,1737118236056,-303.21526434,0.00019,2]
[349314261,1737118236065,-303.21829838,0.00019,2]
[349314263,1737118236075,-303.21526434,0.0001919,2]
[349314265,1737118236084,-303.21829838,0.0001919,2]
[349314267,1737118236093,-303.21526434,0.0001938,2]
[349314269,1737118236102,-303.21829838,0.0001938,2]
[349314271,1737118236111,-303.21526434,0.0001957,2]
[349314273,1737118236120,-303.21829838,0.0001957,2]
[349314276,1737118236131,-303.21526434,0.0001976,2]
[349314279,1737118236140,-303.21829838,0.0001976,2]
[349314282,1737118236149,-454.82289651,0.0001995,4]
[349314284,1737118236158,-454.82744756,0.0001995,4]
[349314285,1737118236167,-300.0,0.00020139,2]
[349314286,1737118236176,-8317.89834899,0.00020139,2]
[349314287,1737118236188,-652.9373057,0.00020139,2]
[349314477,1737118238178,-2720.16434531,0.00020139,2]
[349314479,1737118238188,-454.82289651,0.0002014,4]
[349314481,1737118238198,-454.82744756,0.0002014,4]
[349314483,1737118238208,-454.82289651,0.0002033,4]
[349314485,1737118238217,-454.82744756,0.0002033,4]
[349314487,1737118238226,-248.40633118,0.0002052,2]
[349314490,1737118238244,-151.25866882,0.0002052,2]
[349314492,1737118238258,-454.82289651,0.0002052,4]
[349314494,1737118238268,-151.96,0.0002052,2]
[349314496,1737118238278,-454.82744756,0.0002052,4]
[349314498,1737118238288,-8447.83234021,0.00020652,7]
[349314501,1737118238300,-1036.134,0.00020652,7]
[349314998,1737118243254,-10318.29646086,0.00020652,7]
[349315058,1737118246187,-37257.73719893,0.00020652,7]
[349315060,1737118246198,-175.477,0.00020652,2]
[349315062,1737118246208,-454.82289651,0.0002071,4]
[349315063,1737118246220,-454.82744756,0.0002071,4]
[349315064,1737118246229,-7697.80992132,0.000214,10]
[349315065,1737118246241,-5363.49061178,0.000214,10]
[349315066,1737118246252,-14493.36310716,0.000214,10]
[349315067,1737118247916,-652.04400064,0.00021285,2]
[349315068,1737118247977,-330.69585124,0.00021285,2]
[349315069,1737118247989,-576.73770707,0.00021285,2]
[349315070,1737118248000,-892.5796797,0.00021285,2]
[349315071,1737118248036,-52.07519813,0.00021285,2]
[349315072,1737118248046,-313.99185617,0.000214,10]
[349315074,1737118375107,164.194672,0.00013973,2]
[349315075,1737118392292,3130.0,0.00025,120]
[349315180,1737119362609,164.194672,0.00013973,2]
[349315224,1737119432408,-182.77679503,0.0001854,2]
[349315226,1737119432418,-182.77679503,0.00018727,2]
[349315228,1737119432428,-58.69268372,0.0001892,2]
[349315230,1737119432440,-191.30731628,0.0001892,2]
[349315232,1737119432449,-166.5188879,0.00019178,2]
[349315234,1737119432459,-210.865205,0.0001979,2]
[349315236,1737119432468,-713.8421645,0.00019891,2]
[349315238,1737119432477,-300.0,0.00019999,2]
[349315240,1737119432487,-3189.0,0.0002,2]
[349315242,1737119432497,-29217.01861581,0.0002,15]
[349315244,1737119432506,-323.47853183,0.00020088,2]
[349315246,1737119432516,-1337.8728216,0.00020188,2]
[349315248,1737119432525,-3842.408237,0.00020204,2]
[349315250,1737119432535,-152.11594571,0.00020213,2]
[349315252,1737119432544,-396.672,0.0002052,2]
[349315254,1737119432554,-212.761668,0.00020521,2]
[349315256,1737119432564,-323.47853182,0.00020589,2]
[349315258,1737119432573,-4560.0,0.00020832,2]
[349315260,1737119432583,-323.47853182,0.00021089,2]
[349315262,1737119432594,-175.478,0.00021223,2]
[349315264,1737119432603,-397.156,0.00021316,2]
[349315266,1737119432614,-168.0,0.00021391,2]
[349315268,1737119432623,-168.0,0.00021391,2]
[349315270,1737119432634,-168.0,0.00021391,2]
[349315272,1737119432643,-168.0,0.00021391,2]
[349315274,1737119432653,-168.0,0.00021391,2]
[349315276,1737119432663,-168.0,0.00021391,2]
[349315278,1737119432672,-168.0,0.00021391,2]
[349315280,1737119432682,-171.0,0.00021391,2]
[349315282,1737119432691,-13093.50957273,0.000214,10]
[349315285,1737119432703,-30915.0,0.000214,10]
[349315329,1737119438270,-150.30833027,0.00021186,2]
[349315331,1737119438280,-662.6170542,0.000214,10]
[349315818,1737119443270,-150.30833027,0.00021186,2]
[349315820,1737119443280,-1950.45018278,0.000214,10]
[349315832,1737119443381,-257.175,0.000214,10]
[349316118,1737119446227,-12834.34269386,0.000214,10]
[349316120,1737119446237,-150.30833027,0.000214,2]
[349316122,1737119446247,-2504.13243678,0.000215,2]
[349316123,1737119446258,-299.69104149,0.000215,2]
[349316125,1737119446267,-500.0,0.00021573,2]
[349316127,1737119446277,-323.47853182,0.0002159,2]
[349316130,1737119446287,-239.91720094,0.00021598,2]
[349316131,1737119446296,-13570.2985987,0.00021598,5]
[349316133,1737119446306,-7664.77314759,0.00021598,5]
[349316135,1737119446315,-183468.93678461,0.000216,10]
[349316138,1737119446327,-3323.04491963,0.000216,10]
[349316143,1737119446365,-10812.66813009,0.000216,10]
[349322607,1737120278965,159.008546,0.00013973,2]
[349322721,1737120632682,-280.32133549,0.00017285,2]
[349322723,1737120632692,-280.32133549,0.0001746,2]
[349322725,1737120632701,-56.16033104,0.0001881,2]
[349322728,1737120632715,-115.84732834,0.0001881,2]
[349322730,1737120632724,-280.32133549,0.000189,2]
[349322733,1737120632733,-299.29289837,0.00019,2]
[349322736,1737120632741,-210.8652062,0.00019085,2]
[349322739,1737120632750,-191.50901336,0.000192,2]
[349322741,1737120632759,-191.50901335,0.000192,2]
[349322743,1737120632768,-689.2334326,0.00019296,2]
[349322745,1737120632777,-166.972371,0.00019325,2]
[349322748,1737120632787,-500.0,0.00019855,2]
[349322751,1737120632796,-300.0,0.00019969,2]
[349322754,1737120632805,-12421.3430489,0.0001997,2]
[349322757,1737120632815,-191.50901335,0.00020291,2]
[349322760,1737120632824,-394.214,0.0002052,2]
[349322764,1737120632834,-900.0,0.0002052,2]
[349322766,1737120632843,-1000.000001,0.0002078,2]
[349322769,1737120632852,-159.008546,0.00020807,2]
[349322772,1737120632861,-8438.16367423,0.00020961,2]
[349322775,1737120632870,-4091.79224467,0.00021,30]
[349322779,1737120632881,-8438.16367424,0.00021287,2]
[349322781,1737120632891,-363.6591062,0.00021392,2]
[349322783,1737120632900,-454.71640739,0.000215,2]
[349322785,1737120632908,-204.79379082,0.000215,2]
[349322787,1737120632917,-175.478,0.00021573,2]
[349322789,1737120632927,-513.43386442,0.00021573,2]
[349322791,1737120632935,-500.0,0.00021573,2]
[349322793,1737120632944,-486.15627763,0.00021573,2]
[349322794,1737120632953,-500.0,0.00021573,2]
[349322796,1737120632962,-477.10838105,0.00021573,2]
[349322798,1737120632971,-371.2358012,0.00021589,2]
[349322800,1737120632979,-500.0,0.00021599,2]
[349322802,1737120632988,-500.0,0.00021599,2]
[349322804,1737120632997,-235.78660761,0.00021599,2]
[349322806,1737120633006,-258.78651965,0.00021599,2]
[349322808,1737120633015,-500.0,0.00021599,2]
[349322810,1737120633024,-500.0,0.00021599,2]
[349322812,1737120633034,-392.04725626,0.00021599,2]
[349322814,1737120633043,-348.30074769,0.00021599,2]
[349322816,1737120633052,-225.98829325,0.00021599,2]
[349322818,1737120633061,-29744.82744919,0.000216,5]
[349322820,1737120633070,-14149.61306727,0.000216,5]
[349322822,1737120633079,-859741.41620095,0.000216,10]
[349322825,1737120633092,-410.8,0.000216,10]
[349322828,1737120633103,-20562.0,0.000216,10]
[349322830,1737120633114,-11031.02925888,0.000216,10]
[349322948,1737120638511,-614.40837822,0.00021384,2]
[349322950,1737120638523,-221.77085773,0.00021384,2]
[349322952,1737120638533,-278.00481043,0.000216,10]
[349322954,1737120638544,-142126.37958966,0.000216,10]
[349322973,1737120640664,-32777.0813449,0.000216,10]
[349322974,1737120640724,-2090.0,0.000216,10]
[349322991,1737120643610,-520.25,0.000216,10]
[349323004,1737120646535,-939.87421443,0.00021384,2]
[349323013,1737121124602,159.008546,0.00013973,2]
[349323014,1737121420004,3545.0,0.00025,120]
[349323078,1737121833006,-186.88089033,0.00018921,2]
[349323079,1737121833016,-220.11908967,0.0002052,2]
[349323082,1737121833028,-157.29691033,0.0002052,2]
[349323083,1737121833039,-180.607,0.00021599,2]
[349323084,1737121833049,-300.0,0.00021599,2]
[349323085,1737121833059,-4797.34704764,0.000216,10]
[349323086,1737121833089,-142736.49855551,0.000216,10]
[349323139,1737121838688,-350.16461202,0.00021599,2]
[349323141,1737121838698,-403.78621961,0.000216,10]
[349323148,1737121838762,-30511.58166708,0.000216,10]
[349323192,1737121841038,-13859.66830556,0.000216,10]
[349323247,1737121846756,-350.16461202,0.00021383,2]
[349323248,1737121846766,-6705.92325114,0.000216,10]
[349323250,1737121980366,160.116135,0.00013973,2]
[349323253,1737122466756,-186.88089033,0.00018921,2]
[349323254,1737122466788,-186.88089033,0.000195,2]
[349323255,1737122466815,-3503.0,0.0002,2]
[349323265,1737122682679,299.82,0.0002,2]
[349323524,1737122768920,-4873.85766052,0.00020315,2]
[349323525,1737122768950,-318.20171789,0.0002042,2]
[349323526,1737122768978,-300.0,0.00020432,2]
[349323527,1737122769005,-24900.0,0.00020433,2]
[349323528,1737122769035,-361.874,0.0002052,2]
[349323529,1737122769068,-314.69348079,0.00020645,2]
[349323530,1737122769095,-251.46,0.00020801,2]
[349323531,1737122769123,-318.20171787,0.00020872,2]
[349323532,1737122769151,-1794.0,0.00021,2]
[349323533,1737122812985,-160.116135,0.00021209,2]
[349323534,1737122813013,-318.20171787,0.00021325,2]
[349323535,1737122813040,-249.0,0.0002159,5]
[349323536,1737122813072,-313.46088606,0.00021599,2]
[349323537,1737122813105,-16494.35829856,0.000216,5]
[349323538,1737122813133,-9211.02798888,0.000216,5]
[349323539,1737122813351,-10876.0881666,0.000216,10]
[349323544,1737122855447,-500.0,0.00021573,2]
[349323545,1737122855477,-300.0,0.00021599,2]
[349323546,1737122855507,-8247.17914928,0.000216,5]
[349323547,1737122855574,-15238.64170144,0.000216,10]
[349323614,1737123032100,-198.87607373,0.000215,2]
[349323616,1737123032110,-300.0,0.00021599,2]
[349323618,1737123032119,-4123.58957464,0.000216,5]
[349323620,1737123032132,-4605.51399444,0.000216,5]
[349323622,1737123032142,-15672.02035719,0.000216,10]
[349323654,1737123037922,-44608.52225218,0.000216,10]
[349323655,1737123037934,-612.46597482,0.000216,10]
[349323705,1737123040116,-9716.0,0.000216,10]
[349323724,1737123042940,-562.53700864,0.000216,10]
[349323725,1737123042951,-1355.32620962,0.000216,10]
[349323726,1737123042963,-10350.85505332,0.000216,10]
[349323732,1737123045930,-13620.88879336,0.000216,10]
[349323733,1737123054170,160.679627,0.00013973,2]
[349323744,1737124020339,160.641183,0.00013973,2]
[349323765,1737124212378,3002.25,0.00025,120]
[349323783,1737124232184,-473.62273095,0.00018711,2]
[349323785,1737124232194,-473.62273095,0.000189,2]
[349323788,1737124232204,-250.0,0.0002,2]
[349323789,1737124232213,-2048.8192521,0.00020188,2]
[349323792,1737124232229,-508.985435,0.00020188,2]
[349323794,1737124232239,-462.1105,0.00020227,2]
[349323796,1737124232248,-208.593404,0.00020349,2]
[349323798,1737124232258,-346.935,0.0002052,2]
[349323801,1737124232276,-215.0538638,0.00020678,2]
[349323804,1737124232289,-300.0,0.00020777,2]
[349323806,1737124232303,-3951.0,0.00020777,2]
[349323808,1737124232313,-307.7226899,0.00020778,2]
[349323810,1737124232323,-153.0,0.00020778,2]
[349323812,1737124232334,-158.0704113,0.00020778,2]
[349323814,1737124232344,-215.0538638,0.00020778,2]
[349323816,1737124232354,-154.0316351,0.00020778,2]
[349323818,1737124232365,-153.0,0.00020778,2]
[349323820,1737124232375,-154.0316351,0.00020778,2]
[349323822,1737124232386,-153.0,0.00020778,2]
[349323824,1737124232396,-215.0538638,0.00020778,2]
[349323826,1737124232406,-215.0538638,0.00020778,2]
[349323828,1737124232415,-153.0,0.00020778,2]
[349323829,1737124232425,-154.0316351,0.00020778,2]
[349323832,1737124232435,-153.0,0.00020778,2]
[349323835,1737124232445,-154.0316351,0.00020778,2]
[349323838,1737124232455,-215.0538638,0.00020778,2]
[349323842,1737124232469,-215.0538638,0.00020778,2]
[349323844,1737124232479,-153.6962111,0.00020778,2]
[349323847,1737124232489,-154.0316351,0.00020878,2]
[349323849,1737124232500,-215.0538638,0.00020878,2]
[349323850,1737124232513,-153.0,0.00021078,2]
[349323851,1737124232524,-153.0,0.00021078,2]
[349323852,1737124232534,-1141.77384633,0.00021284,2]
[349323854,1737124232554,-259.51124048,0.00021284,2]
[349323856,1737124232564,-195.97462133,0.00021455,2]
[349323858,1737124232575,-187.62,0.0002149,2]
[349323859,1737124232586,-154.34,0.00021499,2]
[349323860,1737124232596,-271.44039999,0.00021499,2]
[349323861,1737124232606,-215.0538638,0.000215,2]
[349323862,1737124232617,-215.0538638,0.000215,2]
[349323863,1737124232627,-30786.51097281,0.000215,3]
[349323864,1737124232640,-1332.00591845,0.000215,3]
[349323865,1737124232652,-162.0,0.00021555,2]
[349323866,1737124232662,-162.0,0.00021555,2]
[349323867,1737124232672,-162.0,0.00021555,2]
[349323868,1737124232683,-162.0,0.00021555,2]
[349323869,1737124232693,-162.0,0.00021555,2]
[349323870,1737124232704,-162.0,0.00021555,2]
[349323871,1737124232715,-162.0,0.00021555,2]
[349323872,1737124232725,-162.0,0.00021555,2]
[349323873,1737124232735,-152.0,0.00021572,2]
[349323874,1737124232745,-500.0,0.00021599,2]
[349323875,1737124232755,-500.0,0.00021599,2]
[349323876,1737124232764,-500.0,0.00021599,2]
[349323877,1737124232774,-500.0,0.00021599,2]
[349323878,1737124232784,-500.0,0.00021599,2]
[349323879,1737124232798,-500.0,0.00021599,2]
[349323880,1737124232808,-500.0,0.00021599,2]
[349323881,1737124232818,-500.0,0.00021599,2]
[349323882,1737124232827,-576.60576537,0.00021599,2]
[349323883,1737124232837,-500.0,0.00021599,2]
[349323884,1737124232847,-500.0,0.00021599,2]
[349323885,1737124232856,-500.0,0.00021599,2]
[349323886,1737124232866,-500.0,0.00021599,2]
[349323887,1737124232876,-500.0,0.00021599,2]
[349323888,1737124232886,-500.0,0.00021599,2]
[349323889,1737124232895,-210.81730611,0.00021599,2]
[349323890,1737124232905,-509.36238768,0.00021599,2]
[349323891,1737124232914,-500.0,0.00021599,2]
[349323892,1737124232924,-500.0,0.00021599,2]
[349323893,1737124232934,-191.47378114,0.00021599,2]
[349323894,1737124232944,-500.0,0.00021599,2]
[349323895,1737124232953,-500.0,0.00021599,2]
[349323896,1737124232963,-500.0,0.00021599,2]
[349323897,1737124232973,-500.0,0.00021599,2]
[349323898,1737124232984,-500.0,0.00021599,2]
[349323899,1737124232995,-500.0,0.00021599,2]
[349323900,1737124233004,-500.0,0.00021599,2]
[349323901,1737124233014,-500.0,0.00021599,2]
[349323902,1737124233024,-223.17875161,0.00021599,2]
[349323903,1737124233033,-500.0,0.00021599,2]
[349323904,1737124233046,-200.0,0.00021599,2]
[349323905,1737124233056,-200.0,0.00021599,2]
[349323906,1737124233066,-500.0,0.00021599,2]
[349323907,1737124233076,-500.0,0.00021599,2]
[349323908,1737124233086,-500.0,0.00021599,2]
[349323909,1737124233096,-500.0,0.00021599,2]
[349323910,1737124233106,-500.0,0.00021599,2]
[349323911,1737124233116,-500.0,0.00021599,2]
[349323912,1737124233126,-500.0,0.00021599,2]
[349323913,1737124233136,-500.0,0.00021599,2]
[349323914,1737124233146,-500.0,0.00021599,2]
[349323915,1737124233156,-500.0,0.00021599,2]
[349323916,1737124233166,-500.0,0.00021599,2]